{"text_format":"1","workbook":"xlsx","n_sheets":5,"sheets":["Notice","Saisie_OC","Précisions_Fusions","Explications_par_poste","Bdd_Recap_Poste"],"not_rendered":{"charts":0,"images":1,"macros":1,"external_links":0,"defined_names":7,"comments":1,"pivot_tables":0},"unopened":[],"bounds":{"document_bytes":16777216,"sheet_cells":100000,"rows_first":2000,"rows_last":500,"rows_between":2000,"halvings":0,"cell_chars":16384,"cell_head_chars":4096},"cells_cut":0,"cells_raw":0,"read":"whole","date_system":"1900"}

{"sheet":"Notice","index":0,"n_rows":2,"n_cols":1,"rows_kept":2,"cut":false,"hidden":false,"merged":[]}
["Notice "]
[{"$f":"\"Dans l'Annexe 1, les champs à renseigner sont mis en évidence en jaune.\"&CHAR(10)&CHAR(10)&\"Une colonne « Struc. Tréso. - Struct. Tréso. de réf.» a été créée. Elle permet de vérifier la cohérence de la structure de vos dépenses en trésorerie en \"&Cell_Annee&\" par rapport à la moyenne constatée dans l’enquête \"&Cell_Annee-1&\". Des écarts trop importants doivent vous alerter.\"&CHAR(10)&CHAR(10)&\"Pour vous aider dans la ventilation de vos dépenses par poste, notamment pour les soins dentaires, nous vous invitons à vous reporter à l'onglet Explications_par_poste.\"&CHAR(10)&CHAR(10)&\"Merci de bien vouloir respecter intégralement la structure du fichier.\"&CHAR(10)&CHAR(10)&\"Pour toute question sur ce fichier, vous pouvez appeler le Fonds CMU au 01 58 10 11 90\"","v":"Dans l'Annexe 1, les champs à renseigner sont mis en évidence en jaune.\n\nUne colonne « Struc. Tréso. - Struct. Tréso. de réf.» a été créée. Elle permet de vérifier la cohérence de la structure de vos dépenses en trésorerie en 2018 par rapport à la moyenne constatée dans l’enquête 2017. Des écarts trop importants doivent vous alerter.\n\nPour vous aider dans la ventilation de vos dépenses par poste, notamment pour les soins dentaires, nous vous invitons à vous reporter à l'onglet Explications_par_poste.\n\nMerci de bien vouloir respecter intégralement la structure du fichier.\n\nPour toute question sur ce fichier, vous pouvez appeler le Fonds CMU au 01 58 10 11 90"}]

{"sheet":"Saisie_OC","index":1,"n_rows":48,"n_cols":12,"rows_kept":48,"cut":false,"hidden":false,"merged":[[11,0,14,1],[10,4,10,5],[17,10,17,11],[17,4,17,5],[17,2,17,3],[10,2,10,3],[10,9,11,10],[10,11,11,13],[12,9,13,10],[12,11,13,13],[44,0,44,5],[47,0,47,5],[47,7,47,13],[45,0,45,5],[46,0,46,5],[44,7,44,13],[45,7,45,13],[46,7,46,13],[18,8,18,9],[16,2,16,11],[3,2,3,7],[9,2,9,7],[3,9,3,13],[4,9,5,10],[4,11,5,13],[4,2,4,3],[4,4,4,7],[5,5,6,7],[7,5,8,7],[8,11,9,13],[8,9,9,10],[6,9,7,10],[6,11,7,13]]}
[null,null,"Jour saisie",null,null,"Année rapport",null,2018]
[null,null,"Heure saisie",null,null,"Montant Forfait",null,408]
[]
[null,null,"Calculs",null,null,null,null,null,null,"Organisme complémentaire"]
[null,null,{"$f":"Cell_Annee-1","v":2017},null,{"$f":"Cell_Annee","v":2018},null,null,null,null,"Organisme complémentaire N° SIREN (9 chiffres)"]
[null,null,"Dépense en trésorerie","Dépense en droits constatés",{"$f":"$C$6","v":"Dépense en trésorerie"},{"$f":"\"Montant à reporter dans le TR \"&Cell_Annee","v":"Montant à reporter dans le TR 2018"}]
[null,null,{"$f":"SUM(C20:D20)","v":0},{"$f":"SUM(D20,E20)","v":0},{"$f":"SUM(E20:F20)","v":0},null,null,null,null,"Nom de l'organisme"]
[null,null,"Coût moyen trésorerie","Coût moyen en droits constatés",{"$f":"$C$8","v":"Coût moyen trésorerie"},{"$f":"\"Montant à situer par rapport au forfait de \"&TEXT(Cell_Forfait,\"0,00 €\")&\" fixé pour \"&Cell_Annee","v":"Montant à situer par rapport au forfait de 408,00 € fixé pour 2018"}]
[null,null,{"$f":"IF(D16>0,C7/D16,0)","v":0},{"$f":"IF(D16>0,D7/D16,0)","v":0},{"$f":"IF(F16>0,E7/F16,0)","v":0},null,null,null,null,"Prénom Nom du correspondant"]
[null,null,"Effectifs"]
[null,null,{"$f":"Cell_Annee-1","v":2017},null,{"$f":"Cell_Annee","v":2018},null,null,"Évolution",null,"Téléphone du correspondant"]
[{"$f":"\"En cas de fusions au cours des exercices \"&Cell_Annee&\" ou \"&Cell_Annee-1&\", merci d'apporter les précisions utiles dans l'onglet Précisions_Fusions\"","v":"En cas de fusions au cours des exercices 2018 ou 2017, merci d'apporter les précisions utiles dans l'onglet Précisions_Fusions"},null,"T1",null,"T1",null,null,{"$f":"IF(D12>0,F12/D12-1,0)","v":0}]
[null,null,"T2",null,"T2",null,null,{"$f":"IF(D13>0,F13/D13-1,0)","v":0},null,"Mail correspondant"]
[null,null,"T3",null,"T3",null,null,{"$f":"IF(D14>0,F14/D14-1,0)","v":0}]
[null,null,"T4",null,"T4",null,null,{"$f":"IF(D15>0,F15/D15-1,0)","v":0}]
[null,null,"Moyenne",{"$f":"SUM(D12:D15)/4","v":0},"Moyenne",{"$f":"SUM(F12:F15)/4","v":0},null,{"$f":"IF(D16>0,F16/D16-1,0)","v":0}]
[null,null,"Dépense"]
[null,null,{"$f":"Cell_Annee-1","v":2017},null,{"$f":"Cell_Annee","v":2018},null,null,{"$f":"Cell_Annee-1&\" – \"&Cell_Annee","v":"2017 – 2018"},{"$f":"Cell_Annee-1","v":2017},{"$f":"Cell_Annee","v":2018},"Contrôle"]
[null,null,{"$f":"\"Prestations au titre des exercices antérieurs*\"","v":"Prestations au titre des exercices antérieurs*"},{"$f":"\"Prestations au titre de l'exercice**\"","v":"Prestations au titre de l'exercice**"},{"$f":"$C$19","v":"Prestations au titre des exercices antérieurs*"},{"$f":"$D$19","v":"Prestations au titre de l'exercice**"},null,"Évolution Trésorerie","Structure Trésorerie",null,{"$f":"\"Structure Trésorerie de référence***\"","v":"Structure Trésorerie de référence***"},{"$f":"Cell_Annee&\" - Structure Tréso. de réf.\"","v":"2018 - Structure Tréso. de réf."}]
[null,"Total Dépense",{"$f":"SUM(C29:C43)","v":0},{"$f":"SUM(D29:D43)","v":0},0,0,null,{"$f":"IF(SUM(C20:D20)>0,SUM(E20:F20)/SUM(C20:D20)-1,0)","v":0},{"$f":"ROUND(SUM(I29:I43),0)","v":0},{"$f":"ROUND(SUM(J29:J43),0)","v":0},{"$f":"SUM(K29:K43)","v":1},{"$f":"(J20-K20)*100","v":-100}]
[null,"Ville",{"$f":"SUM(C22:C24)","v":0},{"$f":"SUM(D22:D24)","v":0},0,0,null,0,{"$f":"SUM(I22:I24)","v":0},{"$f":"SUM(J22:J24)","v":0},{"$f":"SUM(K22:K24)","v":0.78},-78]
[null,"Honoraires médicaux (1,2)",{"$f":"SUM(C29:C30)","v":0},{"$f":"SUM(D29:D30)","v":0},0,0,null,0,{"$f":"SUM(I29:I30)","v":0},{"$f":"SUM(J29:J30)","v":0},{"$f":"SUM(K29:K30)","v":0.18},-18]
[null,"Forfaits CMU (10,11,12,13)",{"$f":"SUM(C38:C41)","v":0},{"$f":"SUM(D38:D41)","v":0},0,0,null,0,{"$f":"SUM(I38:I41)","v":0},{"$f":"SUM(J38:J41)","v":0},{"$f":"SUM(K38:K41)","v":0.2},-20]
[null,"Autres (3,4,5,6,7,8,9)",{"$f":"SUM(C31:C37)","v":0},{"$f":"SUM(D31:D37)","v":0},{"$f":"SUM(E31:E37)","v":0},0,null,0,{"$f":"SUM(I31:I37)","v":0},{"$f":"SUM(J31:J37)","v":0},{"$f":"SUM(K31:K37)","v":0.4},-40]
[null,"Hôpital",{"$f":"SUM(C26:C27)","v":0},{"$f":"SUM(D26:D27)","v":0},0,0,null,0,{"$f":"SUM(I26:I27)","v":0},{"$f":"SUM(J26:J27)","v":0},{"$f":"SUM(K26:K27)","v":0.22},-22]
[null,"Prestations hospitalières (14)",{"$f":"C42","v":0},{"$f":"D42","v":0},0,0,null,0,{"$f":"I42","v":0},0,0.16,-16]
[null,"Forfait hospitalier (15)",{"$f":"C43","v":0},0,0,0,null,0,0,0,0.06,-6]
[null,"Détail",{"$f":"SUM(C29:C43)","v":0},0,0,0,null,0,{"$f":"ROUND(SUM(I29:I43),0)","v":0},{"$f":"ROUND(SUM(J29:J43),0)","v":0},{"$f":"SUM(K29:K43)","v":1},-100]
[1,"Honoraires des généralistes",null,null,null,null,null,0,{"$f":"IF(SUM($C$28:$D$28)>0,ROUND(SUM(C29:D29)/SUM($C$28:$D$28),4),0)","v":0},{"$f":"IF(SUM($E$28:$F$28)>0,SUM(E29:F29)/SUM($E$28:$F$28),0)","v":0},0.1,-10]
[2,"Honoraires des spécialistes",null,null,null,null,null,0,0,0,0.08,-8]
[3,"Honoraires dentaires",null,null,null,null,null,0,0,0,0.04,-4]
[4,"Honoraires paramédicaux",null,null,null,null,null,0,0,0,0.08,-8]
[5,"Médicaments",null,null,null,null,null,0,0,0,0.2,-20]
[6,"Dispositifs médicaux",null,null,null,null,null,0,0,0,0.03,-3]
[7,"Analyse et biologie",null,null,null,null,null,0,0,0,0.04,-4]
[8,"Frais de transport",null,null,null,null,null,0,0,0,0.01,-1]
[9,"Autres prestations en nature",null,null,null,null,null,0,0,0,0,0]
[10,"Forfaits proth. dentaires",null,null,null,null,null,0,0,0,0.13,-13]
[11,"Forfaits orthodontie",null,null,null,null,null,0,0,0,0.03,-3]
[12,"Forfaits optique médicale",null,null,null,null,null,0,0,0,0.03,-3]
[13,"Forfaits proth. auditives",null,null,null,null,null,0,0,0,0.01,-1]
[14,"Prestations hospitalières",null,null,null,null,null,0,0,0,0.16,-16]
[15,"Forfait journalier",null,null,null,null,null,0,0,0,0.06,-6]
[]
[{"$f":"\"*Les prestations au titre des exercices antérieurs correspondent à des soins effectués en année N-1, voire N-2, et payés en année N, soit :\"","v":"*Les prestations au titre des exercices antérieurs correspondent à des soins effectués en année N-1, voire N-2, et payés en année N, soit :"},null,null,null,null,null,null,{"$f":"\"**Les prestations au titre de l'exercice correspondent à des soins effectués en année N et payés en année N, soit :\"","v":"**Les prestations au titre de l'exercice correspondent à des soins effectués en année N et payés en année N, soit :"}]
[{"$f":" \"– Soins effectués en \"&C18-1&\" ou antérieurement à \"&C18-1&\" et payés en \"&C18","v":"– Soins effectués en 2016 ou antérieurement à 2016 et payés en 2017"},null,null,null,null,null,null,{"$f":"\"– Soins effectués en \"&C18&\" et payés en \"&C18","v":"– Soins effectués en 2017 et payés en 2017"}]
[{"$f":" \"– Soins effectués en \"&E18-1&\" ou antérieurement à \"&E18-1&\" et payés en \"&E18","v":"– Soins effectués en 2017 ou antérieurement à 2017 et payés en 2018"},null,null,null,null,null,null,{"$f":"\"– Soins effectués en \"&E18&\" et payés en \"&E18","v":"– Soins effectués en 2018 et payés en 2018"}]
[null,null,null,null,null,null,null,{"$f":"\"***La Structure trésorerie de référence est établie sur la base de la dépense en trésorerie \"&Cell_Annee-1 & \" pour l'ensemble des OC ayant participé à l'enquête Coût moyen.\"","v":"***La Structure trésorerie de référence est établie sur la base de la dépense en trésorerie 2017 pour l'ensemble des OC ayant participé à l'enquête Coût moyen."}]

{"sheet":"Précisions_Fusions","index":2,"n_rows":7,"n_cols":5,"rows_kept":7,"cut":false,"hidden":false,"merged":[[2,0,2,4],[3,0,3,4],[5,0,5,1],[5,3,5,4],[0,0,0,4]]}
["Informations sur les fusions"]
[]
["Si une fusion est intervenue au cours d'un des exercices, elle doit être prise en compte à sa date d'effet à la fois au niveau des dépenses, mais également au niveau des effectifs CMU-C"]
["Afin de faciliter le suivi de ces fusions, merci de mentionner les coordonnées des OC intégrés (N° Siren, Nom) "]
[]
[{"$f":"Cell_Annee-1","v":2017},null,null,{"$f":"Cell_Annee","v":2018}]
["N° Siren","Nom organisme",null,"N° Siren","Nom organisme"]

{"sheet":"Explications_par_poste","index":3,"n_rows":21,"n_cols":3,"rows_kept":21,"cut":false,"hidden":false,"merged":[[0,0,0,2],[20,0,20,2]]}
["Tableau explicatif de la ventilation par poste"]
["Num poste","Poste de dépense","Commentaires"]
[1,"Honoraires des généralistes","Consultations et soins des médecins généralistes"]
[2,"Honoraires des spécialistes","Consultations et soins des médecins spécialistes pris en charge à 70 % pour la part RO.\nLes consultations et soins des médecins spécialistes pris en charge à 80 % pour la part RO sont considérés comme des actes en milieu hospitalier et sont à renseigner sur la ligne 14"]
[3,"Honoraires dentaires","Partir du détail ligne par ligne pour effectuer la répartition.\nTous les soins curatifs doivent être ventilés dans les honoraires dentaires en ligne 3.\nPour les soins prothétiques et orthodontiques, il faut distinguer :\n– la part du TM, qui est ventilée en ligne 3 ;\n– la part forfait CMU-C (prise en charge réglementée du dépassement), qui est ventilée en ligne 10 ou 11"]
[4,"Honoraires paramédicaux","Infirmiers, kinés, orthoptistes, orthophonistes…\nSages-femme si soins en ville, sinon à ventiler en soins hospitaliers"]
[5,"Médicaments","Toute dépense de médicament à concurrence du TM"]
[6,"Dispositifs médicaux","Tout ce qui relève de la LPP, à concurrence du TM, pansements, petits et gros appareillages…\nPour l'optique et les prothèses auditives :\n– Montant TM en ligne 6 ;\n– Optique, montant dépassement autorisé en forfait optique, médicale en ligne 12 ;\n– Auditif, montant dépassement autoristé en forfait Proth. auditives en ligne 13."]
[7,"Analyse et biologie","Hors actes infirmiers, qui sont ventilés en ligne 4"]
[8,"Frais de transport","À concurrence du TM"]
[9,"Autres prestations en nature","Cures thermales…"]
[10,"Forfaits proth. dentaires","Ne concerne que le montant du dépassement pris en charge dans le cadre du forfait CMU-C.\nLa part du TM doit être ventilée en ligne 3"]
[11,"Forfaits orthodontie","Ne concerne que le montant du dépassement pris en charge dans le cadre du forfait CMU-C.\nLa part du TM doit être ventilée en ligne 3"]
[12,"Forfaits optique médicale","Ne concerne que le montant du dépassement pris en charge dans le cadre du forfait CMU-C.\nLa part du TM doit être ventilée en ligne 6"]
[13,"Forfaits proth. auditives","Ne concerne que le montant du dépassement pris en charge dans le cadre du forfait CMU-C.\nLa part du TM doit être ventilée en ligne 6"]
[14,"Prestations hospitalières","Tous les soins pratiqués en milieu hospitaliers et pris en charge à 80 %\nHors dépassements\nHors forfaits journaliers d'hébergement"]
[15,"Forfait journalier","Forfaits jounaliers d'hébergement :\n– 18,00 € en 2017 et 20,00 € en 2018 par jour en hôpital ou en clinique ;\n– 13,50 € en 2017 et 15,00 € en 2018 par jour en psychiatrie"]
[]
["RO : régime obligatoire",null,"TM : ticket modérateur"]
[]
["Schéma explicatif de la ventilation par poste pour les soins dentaires"]

{"sheet":"Bdd_Recap_Poste","index":4,"n_rows":61,"n_cols":10,"rows_kept":61,"cut":false,"hidden":false,"merged":[]}
["Annee","Exercice","Forfait","Ville","Detail","Prestation","Montant","Nom_Organisme","Num_Siren","Date_Saisie"]
[{"$f":"Cell_Annee-1","v":2017},"Antérieur","Non","Oui","Med","Honoraires des généralistes",{"$f":"SUMPRODUCT((Saisie_OC!$B$29:$B$43=Bdd_Recap_Poste!F2)*(Saisie_OC!$C$29:$C$43))","v":0},{"$f":"Saisie_OC!$L$7","v":0},{"$f":"Cell_Siren","v":0},{"$f":"Cell_Date_Saisie","v":"00:00:00"}]
[2017,"Antérieur","Non","Oui","Med","Honoraires des spécialistes",{"$f":"SUMPRODUCT((Saisie_OC!$B$29:$B$43=Bdd_Recap_Poste!F3)*(Saisie_OC!$C$29:$C$43))","v":0},{"$f":"Saisie_OC!$L$7","v":0},0,"00:00:00"]
[2017,"Antérieur","Non","Oui","Dent","Honoraires dentaires",{"$f":"SUMPRODUCT((Saisie_OC!$B$29:$B$43=Bdd_Recap_Poste!F4)*(Saisie_OC!$C$29:$C$43))","v":0},{"$f":"Saisie_OC!$L$7","v":0},0,"00:00:00"]
[2017,"Antérieur","Non","Oui","Aut","Honoraires paramédicaux",{"$f":"SUMPRODUCT((Saisie_OC!$B$29:$B$43=Bdd_Recap_Poste!F5)*(Saisie_OC!$C$29:$C$43))","v":0},{"$f":"Saisie_OC!$L$7","v":0},0,"00:00:00"]
[2017,"Antérieur","Non","Oui","Aut","Médicaments",{"$f":"SUMPRODUCT((Saisie_OC!$B$29:$B$43=Bdd_Recap_Poste!F6)*(Saisie_OC!$C$29:$C$43))","v":0},{"$f":"Saisie_OC!$L$7","v":0},0,"00:00:00"]
[2017,"Antérieur","Non","Oui","Aut","Dispositifs médicaux",{"$f":"SUMPRODUCT((Saisie_OC!$B$29:$B$43=Bdd_Recap_Poste!F7)*(Saisie_OC!$C$29:$C$43))","v":0},{"$f":"Saisie_OC!$L$7","v":0},0,"00:00:00"]
[2017,"Antérieur","Non","Oui","Aut","Analyse et biologie",{"$f":"SUMPRODUCT((Saisie_OC!$B$29:$B$43=Bdd_Recap_Poste!F8)*(Saisie_OC!$C$29:$C$43))","v":0},{"$f":"Saisie_OC!$L$7","v":0},0,"00:00:00"]
[2017,"Antérieur","Non","Oui","Aut","Frais de transport",{"$f":"SUMPRODUCT((Saisie_OC!$B$29:$B$43=Bdd_Recap_Poste!F9)*(Saisie_OC!$C$29:$C$43))","v":0},{"$f":"Saisie_OC!$L$7","v":0},0,"00:00:00"]
[2017,"Antérieur","Non","Oui","Aut","Autres prestations en nature",{"$f":"SUMPRODUCT((Saisie_OC!$B$29:$B$43=Bdd_Recap_Poste!F10)*(Saisie_OC!$C$29:$C$43))","v":0},{"$f":"Saisie_OC!$L$7","v":0},0,"00:00:00"]
[2017,"Antérieur","Oui","Oui","Dent","Forfaits proth. dentaires",{"$f":"SUMPRODUCT((Saisie_OC!$B$29:$B$43=Bdd_Recap_Poste!F11)*(Saisie_OC!$C$29:$C$43))","v":0},{"$f":"Saisie_OC!$L$7","v":0},0,"00:00:00"]
[2017,"Antérieur","Oui","Oui","Dent","Forfaits orthodontie",{"$f":"SUMPRODUCT((Saisie_OC!$B$29:$B$43=Bdd_Recap_Poste!F12)*(Saisie_OC!$C$29:$C$43))","v":0},{"$f":"Saisie_OC!$L$7","v":0},0,"00:00:00"]
[2017,"Antérieur","Oui","Oui","Aut","Forfaits optique médicale",{"$f":"SUMPRODUCT((Saisie_OC!$B$29:$B$43=Bdd_Recap_Poste!F13)*(Saisie_OC!$C$29:$C$43))","v":0},{"$f":"Saisie_OC!$L$7","v":0},0,"00:00:00"]
[2017,"Antérieur","Oui","Oui","Aut","Forfaits proth. auditives",{"$f":"SUMPRODUCT((Saisie_OC!$B$29:$B$43=Bdd_Recap_Poste!F14)*(Saisie_OC!$C$29:$C$43))","v":0},{"$f":"Saisie_OC!$L$7","v":0},0,"00:00:00"]
[2017,"Antérieur","Non","Non","Hop","Prestations hospitalières",{"$f":"SUMPRODUCT((Saisie_OC!$B$29:$B$43=Bdd_Recap_Poste!F15)*(Saisie_OC!$C$29:$C$43))","v":0},{"$f":"Saisie_OC!$L$7","v":0},0,"00:00:00"]
[2017,"Antérieur","Non","Non","For","Forfait journalier",{"$f":"SUMPRODUCT((Saisie_OC!$B$29:$B$43=Bdd_Recap_Poste!F16)*(Saisie_OC!$C$29:$C$43))","v":0},{"$f":"Saisie_OC!$L$7","v":0},0,"00:00:00"]
[2017,"Exercice","Non","Oui","Med","Honoraires des généralistes",{"$f":"SUMPRODUCT((Saisie_OC!$B$29:$B$43=Bdd_Recap_Poste!F17)*(Saisie_OC!$D$29:$D$43))","v":0},{"$f":"Saisie_OC!$L$7","v":0},0,"00:00:00"]
[2017,"Exercice","Non","Oui","Med","Honoraires des spécialistes",{"$f":"SUMPRODUCT((Saisie_OC!$B$29:$B$43=Bdd_Recap_Poste!F18)*(Saisie_OC!$D$29:$D$43))","v":0},{"$f":"Saisie_OC!$L$7","v":0},0,"00:00:00"]
[2017,"Exercice","Non","Oui","Dent","Honoraires dentaires",{"$f":"SUMPRODUCT((Saisie_OC!$B$29:$B$43=Bdd_Recap_Poste!F19)*(Saisie_OC!$D$29:$D$43))","v":0},{"$f":"Saisie_OC!$L$7","v":0},0,"00:00:00"]
[2017,"Exercice","Non","Oui","Aut","Honoraires paramédicaux",{"$f":"SUMPRODUCT((Saisie_OC!$B$29:$B$43=Bdd_Recap_Poste!F20)*(Saisie_OC!$D$29:$D$43))","v":0},{"$f":"Saisie_OC!$L$7","v":0},0,"00:00:00"]
[2017,"Exercice","Non","Oui","Aut","Médicaments",{"$f":"SUMPRODUCT((Saisie_OC!$B$29:$B$43=Bdd_Recap_Poste!F21)*(Saisie_OC!$D$29:$D$43))","v":0},{"$f":"Saisie_OC!$L$7","v":0},0,"00:00:00"]
[2017,"Exercice","Non","Oui","Aut","Dispositifs médicaux",{"$f":"SUMPRODUCT((Saisie_OC!$B$29:$B$43=Bdd_Recap_Poste!F22)*(Saisie_OC!$D$29:$D$43))","v":0},{"$f":"Saisie_OC!$L$7","v":0},0,"00:00:00"]
[2017,"Exercice","Non","Oui","Aut","Analyse et biologie",{"$f":"SUMPRODUCT((Saisie_OC!$B$29:$B$43=Bdd_Recap_Poste!F23)*(Saisie_OC!$D$29:$D$43))","v":0},{"$f":"Saisie_OC!$L$7","v":0},0,"00:00:00"]
[2017,"Exercice","Non","Oui","Aut","Frais de transport",{"$f":"SUMPRODUCT((Saisie_OC!$B$29:$B$43=Bdd_Recap_Poste!F24)*(Saisie_OC!$D$29:$D$43))","v":0},{"$f":"Saisie_OC!$L$7","v":0},0,"00:00:00"]
[2017,"Exercice","Non","Oui","Aut","Autres prestations en nature",{"$f":"SUMPRODUCT((Saisie_OC!$B$29:$B$43=Bdd_Recap_Poste!F25)*(Saisie_OC!$D$29:$D$43))","v":0},{"$f":"Saisie_OC!$L$7","v":0},0,"00:00:00"]
[2017,"Exercice","Oui","Oui","Dent","Forfaits proth. dentaires",{"$f":"SUMPRODUCT((Saisie_OC!$B$29:$B$43=Bdd_Recap_Poste!F26)*(Saisie_OC!$D$29:$D$43))","v":0},{"$f":"Saisie_OC!$L$7","v":0},0,"00:00:00"]
[2017,"Exercice","Oui","Oui","Dent","Forfaits orthodontie",{"$f":"SUMPRODUCT((Saisie_OC!$B$29:$B$43=Bdd_Recap_Poste!F27)*(Saisie_OC!$D$29:$D$43))","v":0},{"$f":"Saisie_OC!$L$7","v":0},0,"00:00:00"]
[2017,"Exercice","Oui","Oui","Aut","Forfaits optique médicale",{"$f":"SUMPRODUCT((Saisie_OC!$B$29:$B$43=Bdd_Recap_Poste!F28)*(Saisie_OC!$D$29:$D$43))","v":0},{"$f":"Saisie_OC!$L$7","v":0},0,"00:00:00"]
[2017,"Exercice","Oui","Oui","Aut","Forfaits proth. auditives",{"$f":"SUMPRODUCT((Saisie_OC!$B$29:$B$43=Bdd_Recap_Poste!F29)*(Saisie_OC!$D$29:$D$43))","v":0},{"$f":"Saisie_OC!$L$7","v":0},0,"00:00:00"]
[2017,"Exercice","Non","Non","Hop","Prestations hospitalières",{"$f":"SUMPRODUCT((Saisie_OC!$B$29:$B$43=Bdd_Recap_Poste!F30)*(Saisie_OC!$D$29:$D$43))","v":0},{"$f":"Saisie_OC!$L$7","v":0},0,"00:00:00"]
[2017,"Exercice","Non","Non","For","Forfait journalier",{"$f":"SUMPRODUCT((Saisie_OC!$B$29:$B$43=Bdd_Recap_Poste!F31)*(Saisie_OC!$D$29:$D$43))","v":0},{"$f":"Saisie_OC!$L$7","v":0},0,"00:00:00"]
[{"$f":"Cell_Annee","v":2018},"Antérieur","Non","Oui","Med","Honoraires des généralistes",{"$f":"SUMPRODUCT((Saisie_OC!$B$29:$B$43=Bdd_Recap_Poste!F32)*(Saisie_OC!$E$29:$E$43))","v":0},{"$f":"Saisie_OC!$L$7","v":0},0,"00:00:00"]
[2018,"Antérieur","Non","Oui","Med","Honoraires des spécialistes",{"$f":"SUMPRODUCT((Saisie_OC!$B$29:$B$43=Bdd_Recap_Poste!F33)*(Saisie_OC!$E$29:$E$43))","v":0},{"$f":"Saisie_OC!$L$7","v":0},0,"00:00:00"]
[2018,"Antérieur","Non","Oui","Dent","Honoraires dentaires",{"$f":"SUMPRODUCT((Saisie_OC!$B$29:$B$43=Bdd_Recap_Poste!F34)*(Saisie_OC!$E$29:$E$43))","v":0},{"$f":"Saisie_OC!$L$7","v":0},{"$f":"Cell_Siren","v":0},{"$f":"Cell_Date_Saisie","v":"00:00:00"}]
[2018,"Antérieur","Non","Oui","Aut","Honoraires paramédicaux",{"$f":"SUMPRODUCT((Saisie_OC!$B$29:$B$43=Bdd_Recap_Poste!F35)*(Saisie_OC!$E$29:$E$43))","v":0},{"$f":"Saisie_OC!$L$7","v":0},0,"00:00:00"]
[2018,"Antérieur","Non","Oui","Aut","Médicaments",{"$f":"SUMPRODUCT((Saisie_OC!$B$29:$B$43=Bdd_Recap_Poste!F36)*(Saisie_OC!$E$29:$E$43))","v":0},{"$f":"Saisie_OC!$L$7","v":0},0,"00:00:00"]
[2018,"Antérieur","Non","Oui","Aut","Dispositifs médicaux",{"$f":"SUMPRODUCT((Saisie_OC!$B$29:$B$43=Bdd_Recap_Poste!F37)*(Saisie_OC!$E$29:$E$43))","v":0},{"$f":"Saisie_OC!$L$7","v":0},0,"00:00:00"]
[2018,"Antérieur","Non","Oui","Aut","Analyse et biologie",{"$f":"SUMPRODUCT((Saisie_OC!$B$29:$B$43=Bdd_Recap_Poste!F38)*(Saisie_OC!$E$29:$E$43))","v":0},{"$f":"Saisie_OC!$L$7","v":0},0,"00:00:00"]
[2018,"Antérieur","Non","Oui","Aut","Frais de transport",{"$f":"SUMPRODUCT((Saisie_OC!$B$29:$B$43=Bdd_Recap_Poste!F39)*(Saisie_OC!$E$29:$E$43))","v":0},{"$f":"Saisie_OC!$L$7","v":0},0,"00:00:00"]
[2018,"Antérieur","Non","Oui","Aut","Autres prestations en nature",{"$f":"SUMPRODUCT((Saisie_OC!$B$29:$B$43=Bdd_Recap_Poste!F40)*(Saisie_OC!$E$29:$E$43))","v":0},{"$f":"Saisie_OC!$L$7","v":0},0,"00:00:00"]
[2018,"Antérieur","Oui","Oui","Dent","Forfaits proth. dentaires",{"$f":"SUMPRODUCT((Saisie_OC!$B$29:$B$43=Bdd_Recap_Poste!F41)*(Saisie_OC!$E$29:$E$43))","v":0},{"$f":"Saisie_OC!$L$7","v":0},0,"00:00:00"]
[2018,"Antérieur","Oui","Oui","Dent","Forfaits orthodontie",{"$f":"SUMPRODUCT((Saisie_OC!$B$29:$B$43=Bdd_Recap_Poste!F42)*(Saisie_OC!$E$29:$E$43))","v":0},{"$f":"Saisie_OC!$L$7","v":0},0,"00:00:00"]
[2018,"Antérieur","Oui","Oui","Aut","Forfaits optique médicale",{"$f":"SUMPRODUCT((Saisie_OC!$B$29:$B$43=Bdd_Recap_Poste!F43)*(Saisie_OC!$E$29:$E$43))","v":0},{"$f":"Saisie_OC!$L$7","v":0},0,"00:00:00"]
[2018,"Antérieur","Oui","Oui","Aut","Forfaits proth. auditives",{"$f":"SUMPRODUCT((Saisie_OC!$B$29:$B$43=Bdd_Recap_Poste!F44)*(Saisie_OC!$E$29:$E$43))","v":0},{"$f":"Saisie_OC!$L$7","v":0},0,"00:00:00"]
[2018,"Antérieur","Non","Non","Hop","Prestations hospitalières",{"$f":"SUMPRODUCT((Saisie_OC!$B$29:$B$43=Bdd_Recap_Poste!F45)*(Saisie_OC!$E$29:$E$43))","v":0},{"$f":"Saisie_OC!$L$7","v":0},0,"00:00:00"]
[2018,"Antérieur","Non","Non","For","Forfait journalier",{"$f":"SUMPRODUCT((Saisie_OC!$B$29:$B$43=Bdd_Recap_Poste!F46)*(Saisie_OC!$E$29:$E$43))","v":0},{"$f":"Saisie_OC!$L$7","v":0},0,"00:00:00"]
[2018,"Exercice","Non","Oui","Med","Honoraires des généralistes",{"$f":"SUMPRODUCT((Saisie_OC!$B$29:$B$43=Bdd_Recap_Poste!F47)*(Saisie_OC!$F$29:$F$43))","v":0},{"$f":"Saisie_OC!$L$7","v":0},0,"00:00:00"]
[2018,"Exercice","Non","Oui","Med","Honoraires des spécialistes",{"$f":"SUMPRODUCT((Saisie_OC!$B$29:$B$43=Bdd_Recap_Poste!F48)*(Saisie_OC!$F$29:$F$43))","v":0},{"$f":"Saisie_OC!$L$7","v":0},0,"00:00:00"]
[2018,"Exercice","Non","Oui","Dent","Honoraires dentaires",{"$f":"SUMPRODUCT((Saisie_OC!$B$29:$B$43=Bdd_Recap_Poste!F49)*(Saisie_OC!$F$29:$F$43))","v":0},{"$f":"Saisie_OC!$L$7","v":0},0,"00:00:00"]
[2018,"Exercice","Non","Oui","Aut","Honoraires paramédicaux",{"$f":"SUMPRODUCT((Saisie_OC!$B$29:$B$43=Bdd_Recap_Poste!F50)*(Saisie_OC!$F$29:$F$43))","v":0},{"$f":"Saisie_OC!$L$7","v":0},0,"00:00:00"]
[2018,"Exercice","Non","Oui","Aut","Médicaments",{"$f":"SUMPRODUCT((Saisie_OC!$B$29:$B$43=Bdd_Recap_Poste!F51)*(Saisie_OC!$F$29:$F$43))","v":0},{"$f":"Saisie_OC!$L$7","v":0},0,"00:00:00"]
[2018,"Exercice","Non","Oui","Aut","Dispositifs médicaux",{"$f":"SUMPRODUCT((Saisie_OC!$B$29:$B$43=Bdd_Recap_Poste!F52)*(Saisie_OC!$F$29:$F$43))","v":0},{"$f":"Saisie_OC!$L$7","v":0},0,"00:00:00"]
[2018,"Exercice","Non","Oui","Aut","Analyse et biologie",{"$f":"SUMPRODUCT((Saisie_OC!$B$29:$B$43=Bdd_Recap_Poste!F53)*(Saisie_OC!$F$29:$F$43))","v":0},{"$f":"Saisie_OC!$L$7","v":0},0,"00:00:00"]
[2018,"Exercice","Non","Oui","Aut","Frais de transport",{"$f":"SUMPRODUCT((Saisie_OC!$B$29:$B$43=Bdd_Recap_Poste!F54)*(Saisie_OC!$F$29:$F$43))","v":0},{"$f":"Saisie_OC!$L$7","v":0},0,"00:00:00"]
[2018,"Exercice","Non","Oui","Aut","Autres prestations en nature",{"$f":"SUMPRODUCT((Saisie_OC!$B$29:$B$43=Bdd_Recap_Poste!F55)*(Saisie_OC!$F$29:$F$43))","v":0},{"$f":"Saisie_OC!$L$7","v":0},0,"00:00:00"]
[2018,"Exercice","Oui","Oui","Dent","Forfaits proth. dentaires",{"$f":"SUMPRODUCT((Saisie_OC!$B$29:$B$43=Bdd_Recap_Poste!F56)*(Saisie_OC!$F$29:$F$43))","v":0},{"$f":"Saisie_OC!$L$7","v":0},0,"00:00:00"]
[2018,"Exercice","Oui","Oui","Dent","Forfaits orthodontie",{"$f":"SUMPRODUCT((Saisie_OC!$B$29:$B$43=Bdd_Recap_Poste!F57)*(Saisie_OC!$F$29:$F$43))","v":0},{"$f":"Saisie_OC!$L$7","v":0},0,"00:00:00"]
[2018,"Exercice","Oui","Oui","Aut","Forfaits optique médicale",{"$f":"SUMPRODUCT((Saisie_OC!$B$29:$B$43=Bdd_Recap_Poste!F58)*(Saisie_OC!$F$29:$F$43))","v":0},{"$f":"Saisie_OC!$L$7","v":0},0,"00:00:00"]
[2018,"Exercice","Oui","Oui","Aut","Forfaits proth. auditives",{"$f":"SUMPRODUCT((Saisie_OC!$B$29:$B$43=Bdd_Recap_Poste!F59)*(Saisie_OC!$F$29:$F$43))","v":0},{"$f":"Saisie_OC!$L$7","v":0},0,"00:00:00"]
[2018,"Exercice","Non","Non","Hop","Prestations hospitalières",{"$f":"SUMPRODUCT((Saisie_OC!$B$29:$B$43=Bdd_Recap_Poste!F60)*(Saisie_OC!$F$29:$F$43))","v":0},{"$f":"Saisie_OC!$L$7","v":0},0,"00:00:00"]
[2018,"Exercice","Non","Non","For","Forfait journalier",{"$f":"SUMPRODUCT((Saisie_OC!$B$29:$B$43=Bdd_Recap_Poste!F61)*(Saisie_OC!$F$29:$F$43))","v":0},{"$f":"Saisie_OC!$L$7","v":0},0,"00:00:00"]